[Event "V Sunway Sitges Open 2018"]
[Site "Sitges"]
[Date "2018.12.23"]
[Round "10"]
[White "Anirudh Daga"]
[Black "Ribon Calabia, Mariano"]
[Result "0-1"]
[ECO "B34"]
[WhiteElo "1356"]
[BlackElo "1726"]
[Annotator "NA RC"]
[PlyCount "118"]
[EventDate "2018.12.14"]
[EventType "swiss"]
[EventCountry "ESP"]
[SourceTitle "playchess.com"]
[Source "ChessBase"]
[SourceQuality "1"]
[TimeControl "40/5400+30:1800+30"]

1. e4 {[%emt 0:00:00]} c5 {[%emt 0:00:00]} 2. Nf3 {[%emt 0:00:00]} Nc6 {[%emt 0:00:00]} 3. d4 {[%emt 0:00:10]} cxd4 {[%emt 0:00:00]} 4. Nxd4 {[%emt 0:00:19]} Nf6 {[%emt 0:01:28]} 5. Nc3 {[%emt 0:00:37]} e5 {[%emt 0:01:49]} 6. Ndb5 {[%emt 0:00:49]} d6 {[%emt 0:00:58]} 7. Bg5 {[%emt 0:01:23]} a6 {[%emt 0:03:10]} 8. Bxf6 {[%emt 0:02:31]} gxf6 {[%emt 0:00:38]} 9. Na3 {[%emt 0:00:31]} f5 {[%emt 0:13:19]} 10. Bd3 {[%emt 0:07:03]} f4 {[%emt 0:00:49]} 11. Nd5 {[%emt 0:04:44]} Be6 {[%emt 0:11:07]} 12. c3 {[%emt 0:04:42]} Bg7 {[%emt 0:06:50]} 13. Nc2 {[%emt 0:05:46]} O-O {[%emt 0:01:58]} 14. Qe2 {[%emt 0:04:57]} Bh6 {[%emt 0:04:21]} 15. f3 {[%emt 0:02:36]} Kh8 {[%emt 0:04:57]} 16. O-O-O {[%emt 0:04:21]} b5 {[%emt 0:04:36]} 17. Kb1 {[%emt 0:02:05]} Na5 {[%emt 0:03:16]} 18. g3 {[%emt 0:05:14]} Rg8 {[%emt 0:03:25]} 19. g4 {[%emt 0:02:43]} Bg5 {[%emt 0:01:03]} 20. h4 {[%emt 0:00:51]} Be7 {[%emt 0:01:19]} 21. Ncb4 {[%emt 0:04:09]} Bf8 {[%emt 0:04:59]} 22. g5 {[%emt 0:01:52]} Be7 {[%emt 0:02:21]} 23. Nxe7 {[%emt 0:01:28]} Qxe7 {[%emt 0:00:08]} 24. Nd5 {[%emt 0:00:22]} Qd8 {[%emt 0:02:22]} 25. Nf6 {[%emt 0:00:41]} Rg6 {[%emt 0:00:33]} 26. Rdg1 {[%emt 0:04:34]} Nc4 {[%emt 0:04:33]} 27. h5 Rxf6 {[%emt 0:01:41]} 28. gxf6 {[%emt 0:01:34]} Qxf6 {[%emt 0:00:23]} 29. Bxc4 {[%emt 0:01:29]} Bxc4 {[%emt 0:00:39]} 30. Qg2 {[%emt 0:00:33]} d5 {[%emt 0:00:48]} 31. exd5 {[%emt 0:06:20]} Bxd5 {[%emt 0:00:37]} 32. Rh2 {[%emt 0:03:31]} a5 {[%emt 0:01:35]} 33. Qg5 {[%emt 0:00:43]} Qxg5 {[%emt 0:01:08]} 34. Rxg5 {[%emt 0:00:06]} f6 {[%emt 0:00:40]} 35. Rg1 {[%emt 0:01:52]} Bxf3 {[%emt 0:00:11]} 36. Rf1 {[%emt 0:00:34]} Be4+ {[%emt 0:02:17]} 37. Kc1 {[%emt 0:00:22]} Rc8 {[%emt 0:03:27]} 38. h6 {[%emt 0:05:47]} Kg8 {[%emt 0:02:57]} 39. Rg1+ {[%emt 0:01:40]} Bg6 {[%emt 0:00:06]} 40. Rd2 {[%emt 0:00:00]} b4 {[%emt 0:00:00]} 41. Rd7 {[%emt 0:03:51]} bxc3 {[%emt 0:02:57]} 42. bxc3 {[%emt 0:02:01]} Rxc3+ {[%emt 0:00:23]} 43. Kd2 {[%emt 0:01:13]} Rc2+ {[%emt 0:00:38]} 44. Kd1 {[%emt 0:00:14]} Rxa2 {[%emt 0:00:42]} 45. Rg7+ {[%emt 0:02:07]} Kh8 {[%emt 0:00:32]} 46. Rc7 {[%emt 0:00:16]} Kg8 {[%emt 0:00:28]} 47. Rg7+ {[%emt 0:00:30]} Kf8 {[%emt 0:00:54]} 48. R7xg6 {[%emt 0:03:07]} hxg6 {[%emt 0:00:09]} 49. h7 {[%emt 0:00:09]} Kg7 {[%emt 0:00:58]} 50. Rxg6+ {[%emt 0:00:12]} Kxh7 {[%emt 0:00:08]} 51. Rxf6 {[%emt 0:00:05]} Ra4 {[%emt 0:00:54]} 52. Re6 {[%emt 0:01:22]} Re4 {[%emt 0:00:09]} 53. Ra6 {[%emt 0:00:16]} a4 {[%emt 0:00:15]} 54. Kd2 {[%emt 0:00:18]} Kg7 {[%emt 0:00:12]} 55. Kd3 {[%emt 0:00:42]} Re3+ {[%emt 0:00:08]} 56. Kd2 {[%emt 0:00:23]} a3 {[%emt 0:00:07]} 57. Kd1 {[%emt 0:00:34]} f3 {[%emt 0:00:29]} 58. Kd2 {[%emt 0:00:23]} Re2+ {[%emt 0:00:27]} 59. Kc1 {[%emt 0:00:12]} f2 {[%emt 0:00:26]} 0-1